[Event "CIS Master Groups 2024"]
[Site "Vasto"]
[Date "2024.04.09"]
[Round "3.2"]
[White "Brunello, Sabino"]
[Black "Casadio, Niccolo`"]
[Result "1-0"]
[ECO "E90"]
[WhiteElo "2515"]
[BlackElo "2309"]
[Annotator "TA"]
[PlyCount "63"]
[EventDate "2024.04.07"]
[EventType "team-tourn"]
[EventCountry "ITA"]
[SourceTitle "playchess.com"]
[Source "ChessBase"]
[SourceQuality "1"]
[TimeControl "40/5400+30:900+30"]

{[%evp 14,63,42,31,41,26,70,66,68,63,76,52,69,77,68,37,58,24,104,105,82,52,229,229,235,223,284,275,271,279,372,373,375,316,310,312,415,404,554,570,626,627,943,886,933,938,1169,1161,1639,1579,6075,1507]} 1. c4 {[%emt 0:00:02]} Nf6 {[%emt 0:01:24]} 2. Nc3 {[%emt 0:00:27]} g6 {[%emt 0:00:05]} 3. d4 {[%emt 0:00:13][%cal Bd2d4,Bd4d5][%mdl 32]} Bg7 {[%emt 0:00:06]} 4. e4 {[%emt 0:00:06]} d6 {[%emt 0:00:04]} 5. Nf3 {[%emt 0:00:14]} O-O {[%emt 0:00:07]} 6. Bd3 {[%emt 0:00:06]} e5 {[%emt 0:04:07]} 7. d5 {[%emt 0:00:29]} Na6 {[%emt 0:00:42]} 8. h3 {[%emt 0:06:07]} Nd7 {[%emt 0:02:06]} 9. a3 {[%emt 0:08:53]} f5 {[%emt 0:12:22]} 10. b4 {[%emt 0:06:48]} c5 {[%emt 0:00:50] White is slightly better.} 11. dxc6 {[%emt 0:42:52]} bxc6 {[%emt 0:00:19]} 12. Bb1 {[%emt 0:02:21]} Nf6 {[%emt 0:01:34]} 13. Ra2 {[%emt 0:04:29]} Qe7 {[%emt 0:08:20]} 14. Re2 {[%emt 0:03:13]} Nc7 {[%emt 0:00:56]} 15. exf5 {[%emt 0:03:39]} gxf5 {[%emt 0:01:25]} (15... Bxf5 $11 16. Ba2 Kh8) 16. Nd4 $16 {[%emt 0:01:42] White is more active.} Qf7 {[%emt 0:05:41]} 17. Nxc6 {[%emt 0:01:04]} Be6 $2 {[%emt 0:01:34] [#] This costs Black the game.} (17... Kh8 $14 18. O-O (18. Qxd6 Qxc4 19. Bb2 Nfe8 $14) 18... Qxc4) 18. Qxd6 $18 {[%emt 0:01:45]} Nfe8 {[%emt 0:00:15]} 19. Qc5 {[%emt 0:03:53]} e4 {[%emt 0:01:22]} 20. Nd5 {[%emt 0:01:08][%cal Oc6e5] Black must now prevent Ne5!} Kh8 {[%emt 0:01:34]} 21. Ba2 {[%emt 0:00:36]} (21. Nxa7 Na6 (21... Nxd5 22. cxd5 Bxd5 23. Nc6 $14) 22. Qc6 Bxd5 (22... Rxa7 23. O-O $17) 23. cxd5 Qxa7 $17) 21... Bxd5 {[%emt 0:06:46]} 22. cxd5 {[%emt 0:00:05]} Qg6 {[%emt 0:00:14]} 23. g3 {[%emt 0:04:54]} ({Not} 23. Nxa7 Na6 (23... Qxg2 24. Rf1 $14) 24. Qe3 Qxg2 $17) 23... Na6 {[%emt 0:09:26]} 24. Qc2 {[%emt 0:02:32]} Qh5 {[%emt 0:01:14]} 25. Bf4 {[%emt 0:00:29] [#] aiming for Qc4.} Qf3 {[%emt 0:00:24]} 26. O-O {[%emt 0:00:35] White is clearly winning.} Qxa3 {[%emt 0:00:49]} 27. Rb1 {[%emt 0:01:21]} Rc8 {[%emt 0:01:40]} 28. Re3 {[%emt 0:01:52]} Nxb4 {[%emt 0:00:08]} 29. Nxb4 {[%emt 0:00:18]} Qxb4 {[%emt 0:01:06]} 30. Qxc8 {[%emt 0:00:07]} Qd2 {[%emt 0:00:05]} 31. Ra3 {[%emt 0:00:56]} Qe2 {[%emt 0:00:22]} 32. Qc4 {[%emt 0:00:25] Weighted Error Value: White=0.10 (very precise) /Black=0.55.  Loses game:     	---       	Black=1      Mistake:       	---       	Black=1      Inaccurate:     	White=3     	Black=5      OK:         	White=8     	Black=3      Best:        	White=2     	---} 1-0

[Event "CIS Master Groups 2024"]
[Site "Vasto"]
[Date "2024.04.09"]
[Round "3.3"]
[White "Sorbera, Giovanni"]
[Black "Dvirnyy, Danyyil"]
[Result "0-1"]
[ECO "B20"]
[WhiteElo "2148"]
[BlackElo "2480"]
[Annotator "TA"]
[PlyCount "86"]
[EventDate "2024.04.07"]
[EventType "team-tourn"]
[EventCountry "ITA"]
[SourceTitle "playchess.com"]
[Source "ChessBase"]
[SourceQuality "1"]
[TimeControl "40/5400+30:900+30"]

{[%evp 9,85,16,29,10,18,13,18,-31,-14,-33,-40,-51,-55,-49,-49,-58,-51,-46,-53,-52,-20,-15,0,-25,-23,-21,0,-56,-52,-54,-58,-143,-143,-192,-176,-260,-281,-323,-330,-620,-230,-230,-233,-316,-321,-325,-300,-282,-327,-378,-365,-362,-356,-537,-504,-552,-550,-551,-502,-750,-721,-921,-919,-881,-885,-29979,-29980,-29988,-29989,-29989,-29990,-29994,-29995,-29996,-300,-29997,-29998,-29999]} 1. e4 {[%emt 0:00:12]} c5 {[%emt 0:02:51]} 2. b4 {[%emt 0:00:13]} cxb4 {[%emt 0:00:57]} 3. a3 {[%emt 0:00:07]} b3 {[%emt 0:01:40]} 4. cxb3 {[%emt 0:00:31]} d5 {[%emt 0:00:06]} 5. exd5 {[%emt 0:01:35]} Nf6 {[%emt 0:00:06][%cal Oc8g4]} 6. Nc3 {[%emt 0:04:59]} g6 {[%emt 0:02:59][%cal Of8g7]} 7. Bc4 {[%emt 0:04:47]} Bg7 {[%emt 0:00:26]} 8. Qf3 {[%emt 0:03:21]} (8. a4 $11) 8... O-O {[%emt 0:01:04]} 9. Nge2 {[%emt 0:00:41]} Bg4 {[%emt 0:07:18]} 10. Qg3 {[%emt 0:08:44]} Bxe2 {[%emt 0:06:38]} 11. Kxe2 {[%emt 0:04:55]} Nbd7 {[%emt 0:05:48][%cal Bb8d7,Bd7b6,Bb6d5,Bd5b4,Bb4c6,Bc6d4][%mdl 32]} 12. Rb1 {[%emt 0:11:16]} Rc8 {[%emt 0:05:35]} 13. Re1 {[%emt 0:01:04]} Nb6 {[%emt 0:03:17][%csl LRc4,LRd5] Excellent horsemanship.} 14. Kf1 {[%emt 0:08:58]} Nfxd5 {[%emt 0:02:48]} 15. Nxd5 {[%emt 0:00:40]} Nxd5 {[%emt 0:00:06]} 16. a4 {[%emt 0:01:55]} Nb4 {[%emt 0:18:26]} 17. Ba3 {[%emt 0:02:07]} Nc6 {[%emt 0:01:01][%cal Of8e8]} 18. d3 {[%emt 0:03:05]} (18. d4 $11) 18... Re8 $15 {[%emt 0:01:18]} 19. h4 {[%emt 0:05:30]} e6 {[%emt 0:02:54]} 20. h5 {[%emt 0:01:29] White is now going downhill.} Nd4 $17 {[%emt 0:00:31]} ({Inferior is} 20... gxh5 21. Bb2 Nd4 22. Re5 $14) 21. hxg6 {[%emt 0:05:02]} (21. h6 $17 {is a better defense.} Bxh6 22. Re4) 21... hxg6 $19 {[%emt 0:00:07]} 22. Re4 {[%emt 0:00:42] [#]} (22. Bb2 $142) 22... a6 $1 {[%emt 0:00:30]} 23. Bb2 {[%emt 0:11:06]} Nf5 {[%emt 0:00:35]} 24. Qf4 {[%emt 0:02:42]} (24. Qh3 Bxb2 25. Rxb2) 24... Bxb2 $2 {[%emt 0:02:26]} (24... Rxc4 25. dxc4 Qd3+ 26. Re2 Qxb1+ 27. Qc1 Qd3) 25. Rxb2 {[%emt 0:01:26] [#]} Nd6 $1 {[%emt 0:01:48]} 26. Rd4 {[%emt 0:04:49]} e5 {[%emt 0:01:14]} 27. Rxd6 {[%emt 0:00:27]} exf4 {[%emt 0:01:14]} 28. Rxd8 {[%emt 0:00:22]} Rcxd8 {[%emt 0:01:08][%mdl 4096] Endgame. KRR-KRB} 29. a5 {[%emt 0:00:09]} Kg7 {[%emt 0:00:43]} 30. f3 {[%emt 0:01:09]} Re5 {[%emt 0:02:22]} 31. Ra2 {[%emt 0:00:22]} (31. b4 {was the only defense.}) 31... g5 {[%emt 0:03:02]} 32. Kf2 {[%emt 0:00:18]} f5 {[%emt 0:00:40]} 33. Ra4 {[%emt 0:00:43]} Rd7 {[%emt 0:00:28]} 34. Kf1 {[%emt 0:01:12]} Kf6 {[%emt 0:00:39] ...g4 is the strong threat.} 35. Kf2 {[%emt 0:00:44]} g4 {[%emt 0:00:45]} 36. fxg4 {[%emt 0:01:59]} fxg4 {[%emt 0:00:05] ( -> ...g3+)} 37. Bg8 {[%emt 0:02:56]} g3+ {[%emt 0:00:15]} 38. Kf1 {[%emt 0:02:02]} Rxd3 {[%emt 0:00:10][%cal Rd3d1]} 39. Ra1 {[%emt 0:00:04]} Rd2 {[%emt 0:01:04]} 40. Bc4 {[%emt 0:00:09] [#]} f3 $1 {[%emt 0:00:13]} 41. gxf3 {[%emt 0:15:14]} (41. Be2 Rdxe2) 41... g2+ {[%emt 0:15:13]} 42. Kg1 {[%emt 0:00:20]} Rh5 {[%emt 0:00:04][%csl Gg2][%cal Rh5h1]} 43. b4 {[%emt 0:00:39]} Rh1# {[%emt 0:26:26] Weighted Error Value: White=0.63/Black=0.16 (very precise) .  Mistake:       	White=7     	Black=1      Inaccurate:     	White=2     	Black=1      OK:         	White=6     	Black=12     Best:        	White=1     	Black=4      Strong:       	---       	Black=1} 0-1

[Event "CIS Master Groups 2024"]
[Site "Vasto"]
[Date "2024.04.09"]
[Round "3.4"]
[White "Gilevych, Artem"]
[Black "Belli, Giorgio"]
[Result "1-0"]
[ECO "B55"]
[WhiteElo "2417"]
[BlackElo "2109"]
[Annotator "TA"]
[PlyCount "73"]
[EventDate "2024.04.07"]
[EventType "team-tourn"]
[EventCountry "ITA"]
[SourceTitle "playchess.com"]
[Source "ChessBase"]
[SourceQuality "1"]
[TimeControl "40/5400+30:900+30"]

{[%evp 13,73,13,2,5,12,14,0,19,24,19,25,22,16,10,14,10,48,61,34,8,91,104,116,100,123,126,328,337,333,295,312,282,275,178,162,164,159,181,162,158,149,145,197,210,255,254,260,247,286,275,443,426,417,366,373,372,337,312,1050,1042,710,684]} 1. e4 {[%emt 0:00:05]} c5 {[%emt 0:00:14]} 2. Nf3 {[%emt 0:00:05]} d6 {[%emt 0:00:05]} 3. d4 {[%emt 0:00:05]} cxd4 {[%emt 0:00:46]} 4. Nxd4 {[%emt 0:00:05]} Nf6 {[%emt 0:00:06]} 5. f3 {[%emt 0:00:06]} e5 {[%emt 0:01:20]} 6. Nb3 {[%emt 0:00:13]} Be6 {[%emt 0:01:05]} 7. c4 {[%emt 0:00:18]} Nbd7 {[%emt 0:00:34]} 8. Be3 {[%emt 0:00:35]} Rc8 {[%emt 0:01:28][%cal Ob7b5]} 9. Nc3 {[%emt 0:00:06]} (9. Bxa7 b6 10. Nc3 Rc7 $19) 9... Bxc4 {[%emt 0:02:21]} 10. Bxc4 {[%emt 0:00:53] The position is equal.} (10. Bxa7 Bxf1 11. Rxf1 b6 $17) 10... Rxc4 {[%emt 0:00:05]} 11. Qd3 {[%emt 0:00:18]} ({But not} 11. Bxa7 b6 12. Rc1 Be7 $15) 11... Rc6 {[%emt 0:02:52]} 12. g4 {[%emt 0:04:55][%cal Bg2g4,Bg4g5][%mdl 1056] White has compensation.} Be7 {[%emt 0:04:31]} 13. O-O-O {[%emt 0:01:51]} a6 {[%emt 0:10:48]} 14. Kb1 {[%emt 0:03:31]} O-O {[%emt 0:05:30]} 15. h4 {[%emt 0:01:26]} Re8 {[%emt 0:12:22]} 16. Qd2 {[%emt 0:13:00]} (16. g5 $5 Nh5 $8 17. Nd5 $14) 16... Nf8 {[%emt 0:04:16]} (16... Nc5 $11 {keeps the balance.}) 17. g5 $16 {[%emt 0:02:46]} Nh5 {[%emt 0:04:16]} 18. Nd5 {[%emt 0:00:20] [#] aiming for Na5.} Ne6 {[%emt 0:02:02]} 19. Na5 {[%emt 0:02:12] White has more active pieces.} Rc8 {[%emt 0:01:16] A mistake that costs the game.} (19... Bf8 $16 20. Nxc6 bxc6) 20. Nxb7 $18 {[%emt 0:08:22]} Qd7 {[%emt 0:00:04]} 21. Nxe7+ {[%emt 0:02:29]} Qxe7 {[%emt 0:00:06]} 22. Nxd6 {[%emt 0:00:05]} Rcd8 {[%emt 0:00:05]} 23. Qd5 {[%emt 0:08:13]} Nd4 {[%emt 0:01:04]} 24. Bxd4 {[%emt 0:00:17]} Rxd6 {[%emt 0:01:08] [#]} 25. Bc5 $1 {[%emt 0:01:05][%cal Bd4c5,Bc5e7,Be7d6][%mdl 32]} Rxd5 {[%emt 0:00:05]} 26. Bxe7 {[%emt 0:00:04]} Rxd1+ {[%emt 0:00:07]} 27. Rxd1 {[%emt 0:00:03][%mdl 4096] Endgame. KRB-KRN} f5 {[%emt 0:00:29]} (27... h6 $16) 28. gxf6 {[%emt 0:01:30]} gxf6 {[%emt 0:00:04]} 29. Rd7 {[%emt 0:03:26]} Kf7 {[%emt 0:00:25]} 30. Bd6+ {[%emt 0:03:59]} Kg6 {[%emt 0:01:11]} 31. Ra7 {[%emt 0:00:18]} Re6 $2 {[%emt 0:00:28]} (31... f5 {keeps fighting.} 32. Rxa6 (32. exf5+ Kxf5 33. Rxa6 Kf4 $18) 32... fxe4 33. fxe4 (33. Bxe5+ Kf7 $16) 33... Nf6) 32. Rxa6 {[%emt 0:00:39]} f5 {[%emt 0:00:05]} 33. Rb6 {[%emt 0:02:33]} fxe4 {[%emt 0:00:12]} 34. fxe4 {[%emt 0:00:05]} Nf6 {[%emt 0:00:05][%cal Of6d7]} 35. Bc5 {[%emt 0:01:12]} Rxb6 {[%emt 0:00:11]} (35... Kf7 36. Rb4 Ra6) 36. Bxb6 {[%emt 0:00:07]} Nxe4 {[%emt 0:00:05]} 37. a4 {[%emt 0:01:27] Weighted Error Value: White=0.09 (flawless) /Black=0.31.  Loses game:     	---       	Black=1      Mistake:       	---       	Black=4      Inaccurate:     	White=2     	Black=1      OK:         	White=12    	Black=13     Best:        	White=7     	Black=2      Strong:       	White=1     	---} 1-0

[Event "CIS Master Groups 2024"]
[Site "Vasto"]
[Date "2024.04.09"]
[Round "3.5"]
[White "Moroni, Luca Jr"]
[Black "Jianu, Vlad-Cristian"]
[Result "1-0"]
[ECO "D37"]
[WhiteElo "2580"]
[BlackElo "2491"]
[Annotator "TA"]
[PlyCount "101"]
[EventDate "2024.04.07"]
[EventType "team-tourn"]
[EventCountry "ITA"]
[SourceTitle "playchess.com"]
[Source "ChessBase"]
[SourceQuality "1"]
[TimeControl "40/5400+30:900+30"]

{[%evp 9,101,26,22,20,25,29,31,20,28,32,31,32,28,30,31,22,28,11,24,10,41,29,44,54,48,29,52,35,33,40,35,39,36,34,35,26,31,12,29,14,29,28,26,13,16,2,35,28,41,38,39,40,70,79,84,80,80,96,161,152,145,140,153,162,158,143,153,137,232,226,220,212,225,226,226,205,224,240,242,210,256,210,304,304,304,313,390,391,576,382,1374,1264,1133,1193]} 1. c4 {[%emt 0:00:03]} e6 {[%emt 0:04:40]} 2. Nc3 {[%emt 0:00:07]} d5 {[%emt 0:00:34]} 3. d4 {[%emt 0:00:05]} a6 {[%emt 0:00:04]} 4. cxd5 {[%emt 0:00:55]} exd5 {[%emt 0:00:05]} 5. Nf3 {[%emt 0:00:06]} Nf6 {[%emt 0:00:04]} 6. Bg5 {[%emt 0:00:09]} Be6 {[%emt 0:00:06]} 7. e3 {[%emt 0:01:20]} Nbd7 {[%emt 0:00:07]} 8. h3 {[%emt 0:00:22] White is slightly better.} Bd6 {[%emt 0:02:11]} 9. Bd3 {[%emt 0:00:07]} c6 {[%emt 0:00:39]} 10. Bf4 {[%emt 0:02:33]} Qc7 {[%emt 0:00:16]} 11. Qd2 {[%emt 0:00:30]} O-O {[%emt 0:00:06]} 12. O-O {[%emt 0:00:05]} Rfe8 {[%emt 0:01:48]} 13. Rfc1 {[%emt 0:12:15]} Nb6 {[%emt 0:09:08]} 14. Ne2 {[%emt 0:09:31]} Rad8 {[%emt 0:10:18]} 15. a4 {[%emt 0:06:15]} Qe7 {[%emt 0:06:58]} 16. Bxd6 {[%emt 0:07:19]} Qxd6 {[%emt 0:00:59]} 17. Nf4 {[%emt 0:01:10]} Bc8 {[%emt 0:07:36]} 18. Ne5 {[%emt 0:08:31]} Nbd7 {[%emt 0:07:41]} 19. Nxd7 {[%emt 0:04:16]} Bxd7 {[%emt 0:00:06]} 20. b4 {[%emt 0:00:50]} Ra8 {[%emt 0:04:41]} 21. Ra2 {[%emt 0:08:18]} Rec8 {[%emt 0:07:12]} 22. Ne2 {[%emt 0:07:15][%cal Bf4e2,Be2c1,Bc1b3,Bb3c5][%mdl 32]} g6 {[%emt 0:05:46]} 23. Rb1 {[%emt 0:01:20]} Kg7 {[%emt 0:11:21]} 24. Nc1 {[%emt 0:03:06]} Qe7 {[%emt 0:04:16]} 25. Nb3 {[%emt 0:06:04]} Ne8 {[%emt 0:01:25]} 26. Nc5 {[%emt 0:01:09]} Nd6 {[%emt 0:00:22]} 27. Qb2 {[%emt 0:00:33]} Be8 {[%emt 0:06:47]} 28. Raa1 {[%emt 0:02:35]} Rc7 {[%emt 0:03:52]} 29. Re1 {[%emt 0:01:39]} Kg8 {[%emt 0:01:59]} 30. f3 {[%emt 0:01:04][%cal Bf2f3,Bf3e4,Be4e5][%mdl 32]} Bd7 {[%emt 0:02:44][%cal Be8d7,Bd7e6,Be6f5][%mdl 32]} 31. e4 {[%emt 0:01:00] White leaves nothing to chance now.} dxe4 {[%emt 0:00:01]} 32. fxe4 {[%emt 0:00:06]} Rd8 {[%emt 0:00:20]} 33. e5 {[%emt 0:02:57] White is more active.} Nf5 {[%emt 0:00:27] [#]} (33... Ne8 $16) 34. Ne4 $1 $18 {[%emt 0:01:00]} Be6 {[%emt 0:00:47][%cal Og8g7]} 35. Nf6+ {[%emt 0:01:23]} Kg7 {[%emt 0:00:08]} 36. Bxf5 {[%emt 0:00:49]} Bxf5 {[%emt 0:00:02] Black is weak on the dark squares} 37. Rf1 {[%emt 0:03:04][%cal Of1f5,Be1f1,Bf1f4,Bf4h4][%mdl 32] Strongly threatening Rxf5!} Be6 {[%emt 0:00:31]} 38. Rf4 {[%emt 0:01:20]} a5 {[%emt 0:00:52]} (38... b6 $16 {was called for.} 39. Qd2 h6) 39. bxa5 {[%emt 0:01:52]} Bd5 {[%emt 0:00:33]} 40. Rh4 {[%emt 0:04:35]} h6 {[%emt 0:00:54]} 41. Qd2 {[%emt 0:16:16]} Rh8 {[%emt 0:15:26]} 42. Rc1 {[%emt 0:01:06]} Rcc8 {[%emt 0:00:53]} 43. Rc5 {[%emt 0:00:00]} Rcd8 {[%emt 0:00:00]} 44. Qf2 {[%emt 0:00:00]} Bb3 {[%emt 0:00:00]} 45. Rf4 {[%emt 0:00:00]} Rhf8 {[%emt 0:00:00]} (45... Be6 {was worth a try.} 46. Rf3 Ra8) 46. Qe3 {[%emt 0:00:00] [#] aiming for Rh4.} Be6 {[%emt 0:00:00]} 47. h4 {[%emt 0:00:08][%cal Bh3h4,Bh4h5][%mdl 32]} Ra8 {[%emt 0:00:00]} 48. h5 {[%emt 0:00:38]} Ra6 {[%emt 0:00:00]} (48... g5 {keeps fighting.} 49. Rf1 g4) 49. Qc3 {[%emt 0:00:16]} Rfa8 $2 {[%emt 0:00:00]} (49... g5 50. Rf2 Qd8) 50. hxg6 {[%emt 0:00:57]} fxg6 {[%emt 0:00:00]} 51. d5 {[%emt 0:00:10] Weighted Error Value: White=0.14 (very precise) /Black=0.23 (precise) .  Mistake:       	---       	Black=5      Inaccurate:     	White=1     	Black=3      OK:         	White=21    	Black=14     Best:        	White=3     	---        Strong:       	White=1     	---} 1-0

[Event "CIS Master Groups 2024"]
[Site "Vasto"]
[Date "2024.04.09"]
[Round "3.6"]
[White "Yao, Stefano"]
[Black "Pelletier, Yannick"]
[Result "0-1"]
[ECO "E43"]
[WhiteElo "2289"]
[BlackElo "2524"]
[Annotator "TA"]
[PlyCount "104"]
[EventDate "2024.04.07"]
[EventType "team-tourn"]
[EventCountry "ITA"]
[SourceTitle "playchess.com"]
[Source "ChessBase"]
[SourceQuality "1"]
[TimeControl "40/5400+30:900+30"]

{[%evp 19,104,13,13,6,31,0,16,0,-2,-8,7,5,23,22,29,14,24,12,37,25,33,-19,-23,-12,-14,-8,0,0,0,0,0,-7,35,0,0,0,0,-31,0,-8,-7,-29,-29,-54,-43,-116,-119,-125,-121,-118,-99,-109,-87,-171,-174,-184,0,-38,0,-179,-164,-173,-179,-185,-201,-156,-190,-268,-293,-312,-331,-317,-331,-466,-420,-498,-485,-502,-477,-512,-483,-609,-581,-1413,-1320,-1347,-1412]} 1. d4 {[%emt 0:02:42]} Nf6 {[%emt 0:00:23]} 2. c4 {[%emt 0:00:35]} e6 {[%emt 0:00:15]} 3. Nc3 {[%emt 0:00:04]} Bb4 {[%emt 0:00:36]} 4. e3 {[%emt 0:00:13]} O-O {[%emt 0:00:43]} 5. Nf3 {[%emt 0:00:10]} b6 {[%emt 0:01:39]} 6. Bd2 {[%emt 0:00:09]} Bb7 {[%emt 0:02:28]} 7. Bd3 {[%emt 0:00:51]} c5 {[%emt 0:00:47]} 8. O-O {[%emt 0:00:15]} d6 {[%emt 0:07:47]} 9. a3 {[%emt 0:07:58]} Bxc3 {[%emt 0:01:04]} 10. Bxc3 {[%emt 0:00:05]} Ne4 {[%emt 0:05:07]} 11. Be1 {[%emt 0:04:13]} Nd7 {[%emt 0:01:38]} 12. Kh1 {[%emt 0:11:29]} a5 {[%emt 0:09:11]} 13. b3 {[%emt 0:06:45] The position is equal.} Qe7 {[%emt 0:06:11]} 14. Ng1 {[%emt 0:10:25]} Nef6 {[%emt 0:02:08]} 15. Ne2 {[%emt 0:08:10]} Rfd8 {[%emt 0:01:49]} 16. f3 {[%emt 0:04:46]} d5 {[%emt 0:02:43]} 17. Bh4 {[%emt 0:02:37]} cxd4 {[%emt 0:07:10]} 18. exd4 {[%emt 0:12:00]} Rdc8 {[%emt 0:00:35][%cal Oa5a4]} 19. Nc3 {[%emt 0:01:40]} Ba6 {[%emt 0:04:39][%cal Rd5c4]} 20. Nb5 {[%emt 0:03:00]} ({Better is} 20. Qe2 $14) 20... dxc4 $1 $11 {[%emt 0:04:46]} 21. bxc4 {[%emt 0:00:19]} Bxb5 {[%emt 0:02:38]} 22. cxb5 {[%emt 0:00:04]} Rc3 {[%emt 0:01:15]} 23. Be4 {[%emt 0:06:06]} Rd8 {[%emt 0:03:00]} 24. a4 {[%emt 0:01:34]} Nf8 {[%emt 0:00:55]} 25. Qe1 {[%emt 0:09:47]} Rc7 {[%emt 0:11:41][%cal Of8g6]} 26. Bc6 {[%emt 0:01:46]} Ng6 $1 {[%emt 0:00:32][%cal Og6h4]} 27. Bg3 {[%emt 0:00:33]} Rcc8 {[%emt 0:00:03]} 28. Qe2 {[%emt 0:02:25]} Nd5 {[%emt 0:00:23]} 29. Rfc1 {[%emt 0:00:45]} Qg5 {[%emt 0:11:53]} 30. Bf2 {[%emt 0:02:12]} h5 {[%emt 0:01:08]} 31. g3 {[%emt 0:00:42]} h4 {[%emt 0:01:40]} 32. Qe4 {[%emt 0:00:08]} ({White should play} 32. Rc4 $15) 32... h3 $17 {[%emt 0:02:59]} 33. Rc4 {[%emt 0:00:45]} Nge7 {[%emt 0:01:21]} 34. Rac1 {[%emt 0:00:31]} Nxc6 {[%emt 0:05:33]} 35. bxc6 {[%emt 0:00:06]} Qd2 {[%emt 0:00:28]} 36. R4c2 {[%emt 0:00:36]} (36. Kg1 $17 {was called for.}) 36... Qb4 $19 {[%emt 0:00:11]} 37. Rc4 {[%emt 0:00:12] [#]} Qd2 {[%emt 0:00:09]} (37... Qb3 $1 $19 {And now ...Nb4 would win.} 38. g4 Nb4) 38. R4c2 $15 {[%emt 0:00:03]} Qb4 {[%emt 0:00:03]} (38... Qh6 $15) 39. Rc4 $1 $19 {[%emt 0:00:03]} Qb3 {[%emt 0:00:21]} 40. Kg1 {[%emt 0:02:23] [#]} Nb4 $1 {[%emt 0:01:30]} 41. Be1 {[%emt 0:11:33]} Qb2 {[%emt 0:02:56]} 42. Bf2 {[%emt 0:00:44]} Qa2 {[%emt 0:01:34] Black is more active.} 43. Qb1 {[%emt 0:01:06]} (43. f4 $142) 43... Qa3 {[%emt 0:04:23]} 44. R1c3 {[%emt 0:02:13]} Qxa4 {[%emt 0:00:02][%cal Rc8c6]} 45. c7 {[%emt 0:00:25]} Rd7 {[%emt 0:03:06] ...b5 would now be deadly.} 46. Qf1 {[%emt 0:00:43]} (46. Rc1 {was forced.}) 46... b5 {[%emt 0:01:41]} 47. Rc5 {[%emt 0:00:18]} Nd5 {[%emt 0:00:12] Black is clearly winning.} 48. Rc1 {[%emt 0:00:19]} Rdxc7 {[%emt 0:00:49]} (48... Rcxc7 49. Ra1 Qb3 50. Rxb5 Qxf3 51. Qxh3 $11) 49. Qxh3 {[%emt 0:00:13]} Qb3 {[%emt 0:02:26]} 50. Qh4 {[%emt 0:01:24]} Rxc5 {[%emt 0:01:49]} ({And not} 50... Qxf3 51. Rxc7 Nxc7 52. Rxc7 Rxc7 (52... Qd1+ 53. Kg2 $11) 53. Qd8+ Kh7 54. Qxc7 $11) 51. Rxc5 {[%emt 0:00:03]} Ra8 {[%emt 0:00:42]} 52. Qe4 {[%emt 0:02:09]} a4 {[%emt 0:00:07] Weighted Error Value: White=0.37/Black=0.14 (very precise) .  Mistake:       	White=5     	Black=2      Inaccurate:     	White=4     	Black=1      OK:         	White=15    	Black=18     Best:        	White=1     	Black=3      Strong:       	White=1     	Black=2} 0-1